fUST/lending_fUST_20260117
["ID","MTS","AMOUNT","RATE_DAILY","PERIOD"]
[402211810,1768606244643,-198.478,0.00016095,2]
[402211812,1768606244656,-477.0,0.00016095,2]
[402211814,1768606244666,-3000.0,0.000161,2]
[402211816,1768606244675,-778.0,0.000161,2]
[402211818,1768606244685,-3000.0,0.0001611,2]
[402211820,1768606244694,-210.920516,0.0001611,7]
[402211822,1768606244706,-1414.239953,0.0001611,7]
[402211824,1768606244716,-3000.0,0.0001612,2]
[402211826,1768606244725,-3000.0,0.0001613,2]
[402211828,1768606244735,-5437.815442,0.0001613,7]
[402211830,1768606244746,-3000.0,0.0001614,2]
[402211832,1768606244756,-3000.0,0.0001615,2]
[402211834,1768606244765,-3000.0,0.0001616,2]
[402211836,1768606244775,-3000.0,0.0001617,2]
[402211838,1768606244784,-2013.586169,0.0001617,7]
[402211840,1768606244793,-2154.270002,0.0001617,7]
[402211842,1768606244805,-637.59966662,0.0001617,30]
[402211844,1768606244815,-168.0,0.00016176,2]
[402211846,1768606244824,-3000.0,0.0001618,2]
[402211848,1768606244833,-260.0,0.00016182,2]
[402211850,1768606244842,-3000.0,0.00016188,2]
[402211852,1768606244852,-3000.0,0.0001619,2]
[402211854,1768606244861,-168.0,0.00016199,2]
[402211856,1768606244870,-3000.0,0.000162,2]
[402211858,1768606244879,-3000.0,0.0001621,2]
[402211860,1768606244890,-3000.0,0.0001622,2]
[402211862,1768606244900,-3000.0,0.0001623,2]
[402211864,1768606244909,-188.352318,0.0001623,7]
[402211866,1768606244919,-477.0,0.00016232,2]
[402211868,1768606244928,-3000.0,0.0001624,2]
[402211870,1768606244939,-1137.7253771,0.00016244,2]
[402211872,1768606244948,-3000.0,0.0001625,2]
[402211874,1768606244958,-3000.0,0.0001626,2]
[402211876,1768606244969,-3000.0,0.0001627,2]
[402211878,1768606244979,-3000.0,0.0001628,2]
[402211880,1768606244988,-3000.0,0.0001629,2]
[402211882,1768606244998,-185.318628,0.00016293,7]
[402211884,1768606245013,-3000.0,0.000163,2]
[402211887,1768606245023,-3000.0,0.0001631,2]
[402211889,1768606245034,-3000.0,0.0001632,2]
[402211890,1768606245045,-507.222572,0.00016328,7]
[402211892,1768606245056,-3000.0,0.0001633,2]
[402211895,1768606245068,-3000.0,0.0001634,2]
[402211897,1768606245077,-2541.879449,0.0001634,7]
[402211898,1768606245088,-3000.0,0.0001635,2]
[402211901,1768606245104,-2312.83697232,0.00016356,2]
[402211903,1768606245115,-151.0,0.00016356,2]
[402211905,1768606245126,-478.75725327,0.00016356,2]
[402211906,1768606245136,-3000.0,0.0001636,2]
[402211908,1768606245145,-477.0,0.00016369,2]
[402211910,1768606245154,-3000.0,0.0001637,2]
[402211912,1768606245167,-5384.93481125,0.0001637,2]
[402211914,1768606245177,-3000.0,0.0001638,2]
[402211916,1768606245186,-3000.0,0.0001639,2]
[402211918,1768606245196,-3000.0,0.000164,2]
[402211920,1768606245206,-3000.0,0.0001641,2]
[402211922,1768606245216,-3000.0,0.0001642,2]
[402211924,1768606245226,-284.45864,0.00016421,7]
[402211926,1768606245235,-3000.0,0.0001643,2]
[402211928,1768606245245,-151.0,0.00016438,2]
[402211930,1768606245254,-3000.0,0.0001644,2]
[402211932,1768606245264,-158.338336,0.00016449,7]
[402211934,1768606245273,-3000.0,0.0001645,2]
[402211936,1768606245282,-3000.0,0.0001646,2]
[402211938,1768606245292,-3000.0,0.0001647,2]
[402211941,1768606245302,-237.507503,0.0001647,7]
[402211944,1768606245312,-3000.0,0.0001648,2]
[402211947,1768606245322,-189.84,0.00016484,2]
[402211950,1768606245332,-3000.0,0.0001649,2]
[402211954,1768606245341,-445.548796,0.0001649,7]
[402211956,1768606245351,-3000.0,0.000165,2]
[402211958,1768606245363,-168.0,0.00016504,2]
[402211960,1768606245373,-477.0,0.00016506,2]
[402211962,1768606245383,-3000.0,0.0001651,2]
[402211964,1768606245393,-3000.0,0.0001652,2]
[402211966,1768606245404,-3000.0,0.0001653,2]
[402211968,1768606245414,-3000.0,0.0001654,2]
[402211970,1768606245424,-5883.199331,0.0001655,2]
[402211972,1768606245434,-168.0,0.00016568,2]
[402211974,1768606245444,-280.5615326,0.000166,2]
[402211976,1768606245453,-888.0,0.00016629,2]
[402211978,1768606245463,-168.3888056,0.00016629,2]
[402211980,1768606245473,-477.0,0.00016643,2]
[402211982,1768606245483,-253.8608456,0.00016652,2]
[402211984,1768606245493,-9154.83330289,0.0001666,2]
[402211986,1768606245503,-160.41,0.00016666,2]
[402211988,1768606245513,-800.0,0.00016708,2]
[402211990,1768606245523,-168.0,0.00016715,2]
[402211992,1768606245532,-168.0,0.00016733,2]
[402211994,1768606245542,-274.294,0.00016735,2]
[402211996,1768606245551,-200.096,0.00016735,2]
[402211998,1768606245561,-477.0,0.0001678,2]
[402212000,1768606245570,-443.5955616,0.0001681,2]
[402212002,1768606245580,-897.50580187,0.00016815,7]
[402212004,1768606245592,-168.0,0.00016855,2]
[402212006,1768606245602,-224.7449141,0.0001686,17]
[402212008,1768606245611,-180.2648404,0.0001686,17]
[402212010,1768606245621,-151.0,0.00016904,2]
[402212012,1768606245630,-2398.4119403,0.00016904,2]
[402212014,1768606245640,-496.47127164,0.00016904,2]
[402212016,1768606245649,-477.0,0.00016917,2]
[402212019,1768606245659,-168.0,0.0001692,2]
[402212020,1768606245668,-168.0,0.00016948,2]
[402212022,1768606245678,-168.0,0.00016959,2]
[402212025,1768606245687,-168.0,0.00016977,2]
[402212027,1768606245697,-281.0,0.00017,2]
[402212029,1768606245706,-500.0,0.0001701,2]
[402212030,1768606245715,-80219.73959846,0.0001701,3]
[402212033,1768606245725,-477.0,0.00017054,2]
[402212035,1768606245734,-477.0,0.00017191,2]
[402212036,1768606245744,-897.50580187,0.00017261,9]
[402212039,1768606245754,-477.0,0.00017328,2]
[402212041,1768606245763,-488.48458639,0.00017362,2]
[402212042,1768606245772,-180.09545059,0.00017409,2]
[402212044,1768606245782,-5000.0,0.00017412,2]
[402212046,1768606245792,-2487.15318209,0.00017452,2]
[402212048,1768606245802,-151.8071772,0.00017452,2]
[402212050,1768606245811,-514.84070869,0.00017452,2]
[402212052,1768606245821,-477.0,0.00017465,2]
[402212055,1768606245830,-266.0,0.0001752,2]
[402212057,1768606245840,-1613.0,0.00017549,2]
[402212058,1768606245849,-3000.0,0.00017558,7]
[402212061,1768606245858,-487.92718303,0.00017602,2]
[402212062,1768606245868,-1041.66666667,0.00017649,2]
[402212064,1768606245877,-160.0,0.00017649,2]
[402212066,1768606245887,-897.50580187,0.00017706,10]
[402212068,1768606245898,-325.0,0.00017711,2]
[402212070,1768606245907,-386.0,0.00017869,2]
[402212073,1768606245917,-7718.13585009,0.00017959,2]
[402212075,1768606245926,-174.61919141,0.00017998,2]
[402212076,1768606245937,-2579.17784983,0.00018,2]
[402212077,1768606245946,-533.88981491,0.00018,2]
[402212078,1768606245955,-897.50580187,0.00018151,11]
[402212079,1768606245967,-363.7,0.00018262,2]
[402212080,1768606245976,-224.7449141,0.00018321,32]
[402212081,1768606245985,-180.2648404,0.00018321,32]
[402212082,1768606245995,-1368.448114,0.000184,7]
[402212083,1768606246005,-459.864511,0.00018434,7]
[402212084,1768606246014,-170.130276,0.00018434,7]
[402212085,1768606246023,-403.44363,0.00018459,7]
[402212086,1768606246032,-2674.60743027,0.00018548,2]
[402212087,1768606246041,-553.64373807,0.00018548,2]
[402212088,1768606246051,-897.50580187,0.00018597,13]
[402212089,1768606246060,-3000.0,0.00018654,7]
[402212090,1768606246069,-1031.58330387,0.000187,2]
[402212091,1768606246078,-5000.0,0.00018863,2]
[402212092,1768606246088,-303.10001603,0.000189,2]
[402212093,1768606246097,-303.10001603,0.000189,2]
[402212094,1768606246107,-800.0,0.00018934,2]
[402212095,1768606246116,-300.0,0.00019,2]
[402212096,1768606246125,-897.50580187,0.00019042,14]
[402212098,1768606246135,-303.10001603,0.00019089,2]
[402212100,1768606246144,-303.10001603,0.00019089,2]
[402212102,1768606246154,-363.7,0.00019092,2]
[402212104,1768606246164,-629.0,0.00019095,2]
[402212106,1768606246173,-1367.0,0.00019095,2]
[402212108,1768606246183,-417.0,0.00019095,2]
[402212110,1768606246193,-715.0,0.00019095,2]
[402212112,1768606246204,-178.0,0.00019095,2]
[402212114,1768606246213,-2773.56790519,0.00019096,2]
[402212116,1768606246223,-574.12855637,0.00019096,2]
[402212118,1768606246232,-2518.54,0.00019178,2]
[402212120,1768606246242,-2499.99,0.00019178,2]
[402212122,1768606246252,-500.01,0.00019178,2]
[402212124,1768606246261,-2536.62,0.00019178,2]
[402212126,1768606246270,-399.99,0.00019178,2]
[402212128,1768606246279,-2280.57,0.00019178,2]
[402212130,1768606246288,-500.0,0.00019178,2]
[402212132,1768606246298,-500.0,0.00019178,2]
[402212134,1768606246307,-500.0,0.00019178,2]
[402212136,1768606246316,-500.0,0.00019178,2]
[402212138,1768606246325,-500.0,0.00019178,2]
[402212140,1768606246335,-500.0,0.00019178,2]
[402212142,1768606246344,-500.0,0.00019178,2]
[402212144,1768606246353,-500.0,0.00019178,2]
[402212146,1768606246362,-500.0,0.00019178,2]
[402212148,1768606246371,-500.0,0.00019178,2]
[402212150,1768606246380,-500.0,0.00019178,2]
[402212152,1768606246390,-500.0,0.00019178,2]
[402212154,1768606246399,-500.0,0.00019178,2]
[402212156,1768606246409,-500.0,0.00019178,2]
[402212158,1768606246419,-512.21968696,0.00019178,2]
[402212160,1768606246429,-199.27233311,0.00019178,2]
[402212162,1768606246438,-1580.516051,0.00019178,2]
[402212164,1768606246447,-1580.516051,0.00019178,2]
[402212166,1768606246456,-1580.516051,0.00019178,2]
[402212168,1768606246466,-1580.516051,0.00019178,2]
[402212170,1768606246475,-1580.516051,0.00019178,2]
[402212172,1768606246484,-1580.516051,0.00019178,2]
[402212174,1768606246496,-1580.516051,0.00019178,2]
[402212176,1768606246506,-1580.516051,0.00019178,2]
[402212178,1768606246515,-1580.516051,0.00019178,2]
[402212180,1768606246525,-1580.516051,0.00019178,2]
[402212182,1768606246535,-1580.516051,0.00019178,2]
[402212184,1768606246545,-1580.516051,0.00019178,2]
[402212186,1768606246555,-1580.516051,0.00019178,2]
[402212188,1768606246565,-1580.516051,0.00019178,2]
[402212191,1768606246576,-1580.516051,0.00019178,2]
[402212193,1768606246587,-1580.516051,0.00019178,2]
[402212195,1768606246598,-1580.516051,0.00019178,2]
[402212197,1768606246608,-1580.516051,0.00019178,2]
[402212198,1768606246617,-1580.516051,0.00019178,2]
[402212201,1768606246627,-1580.51605,0.00019178,2]
[402212203,1768606246637,-151.00001,0.00019178,2]
[402212205,1768606246647,-22260.38,0.000192,2]
[402212206,1768606246656,-190.77,0.000192,2]
[402212209,1768606246665,-167.85,0.000192,2]
[402212211,1768606246674,-3199.29,0.000192,2]
[402212212,1768606246684,-210.48,0.000192,2]
[402212215,1768606246694,-800.0,0.00019259,2]
[402212217,1768606246704,-303.10001603,0.00019278,2]
[402212218,1768606246712,-303.10001603,0.00019278,2]
[402212221,1768606246722,-686.0,0.00019286,2]
[402212223,1768606246731,-170.0,0.00019334,120]
[402212244,1768606246923,-171.0,0.00019334,120]
[402212246,1768606246933,-171.0,0.00019334,120]
[402212248,1768606246942,-539.60506637,0.00019362,2]
[402212250,1768606246951,-181.08010149,0.00019367,2]
[402212252,1768606246963,-303.10001603,0.00019467,2]
[402212254,1768606246972,-303.10001603,0.00019467,2]
[402212256,1768606246981,-897.50580187,0.00019487,16]
[402212258,1768606246991,-2876.18991768,0.00019644,2]
[402212260,1768606247001,-595.37131296,0.00019644,2]
[402212262,1768606247011,-303.10001603,0.00019656,2]
[402212264,1768606247020,-303.1000155,0.00019656,2]
[402212266,1768606247029,-2284.57,0.000197,3]
[402212268,1768606247038,-3000.0,0.0001975,7]
[402212270,1768606247048,-224.7449141,0.00019781,48]
[402212272,1768606247057,-180.2648404,0.00019781,48]
[402212274,1768606247066,-11796.61578776,0.00019821,2]
[402212276,1768606247076,-454.65002405,0.00019845,4]
[402212279,1768606247086,-1581.731909,0.000199,5]
[402212281,1768606247096,-1000.0,0.0001992,5]
[402212283,1768606247107,-285904.90255822,0.00019921,2]
[402212285,1768606247115,-10582.45969065,0.00019921,2]
[402212286,1768606247124,-363.7,0.00019923,2]
[402212289,1768606247134,-897.50580187,0.00019933,17]
[402212291,1768606247143,-1000.0,0.0001994,5]
[402212293,1768606247152,-1000.0,0.0001996,5]
[402212294,1768606247161,-28416.1,0.0001998,2]
[402212296,1768606247170,-1000.0,0.0001998,5]
[402212299,1768606247179,-2000.0,0.00019994,7]
[402212300,1768606247188,-450.66631797,0.0002,2]
[402212302,1768606247197,-20180.4469299,0.0002,2]
[402212304,1768606247206,-1072.4,0.0002,60]
[402212306,1768606247215,-2024.58642618,0.0002,2]
[402212309,1768606247225,-205.37133219,0.0002,2]
[402212310,1768606247234,-1000.0,0.0002,5]
[402212313,1768606247243,-1760.641266,0.0002,2]
[402212314,1768606247253,-250.0,0.0002,10]
[402212316,1768606247262,-151.55000802,0.0002,2]
[402212318,1768606247271,-454.65002405,0.00020034,4]
[402212320,1768606247281,-210.48,0.000201,2]
[402212323,1768606247290,-250.0,0.000201,10]
[402212325,1768606247301,-229.4976631,0.0002011,3]
[402212327,1768606247310,-2982.60894464,0.00020192,2]
[402212329,1768606247319,-617.40005154,0.00020192,2]
[402212331,1768606247328,-22260.38,0.000202,2]
[402212333,1768606247337,-190.77,0.000202,2]
[402212334,1768606247346,-3199.29,0.000202,2]
[402212337,1768606247356,-250.0,0.000202,10]
[402212339,1768606247366,-454.65002405,0.00020223,4]
[402212341,1768606247375,-250.0,0.000203,10]
[402212343,1768606247384,-170.0,0.000203,120]
[402212345,1768606247393,-171.0,0.000203,120]
[402212347,1768606247402,-171.0,0.000203,120]
[402212349,1768606247412,-897.50580187,0.00020378,18]
[402212351,1768606247421,-250.0,0.000204,10]
[402212353,1768606247431,-322.0,0.00020408,120]
[402212355,1768606247440,-193.0,0.00020408,120]
[402212357,1768606247450,-166.0,0.00020408,120]
[402212359,1768606247459,-167.0,0.00020408,120]
[402212361,1768606247469,-454.65002405,0.00020412,4]
[402212363,1768606247478,-2000.0,0.00020494,7]
[402212365,1768606247487,-250.0,0.000205,10]
[402212367,1768606247498,-230.85702611,0.00020512,56]
[402212369,1768606247508,-228.83627671,0.00020512,56]
[402212371,1768606247518,-250.0,0.000206,10]
[402212373,1768606247528,-454.65002398,0.00020601,4]
[402212375,1768606247537,-728.0,0.0002066,2]
[402212377,1768606247547,-250.0,0.000207,10]
[402212379,1768606247557,-2284.5,0.000207,3]
[402212381,1768606247566,-152.80203403,0.00020736,2]
[402212383,1768606247581,-3092.96547559,0.0002074,2]
[402212385,1768606247591,-640.24385345,0.0002074,2]
[402212387,1768606247600,-363.7,0.00020753,2]
[402212389,1768606247609,-250.0,0.000208,10]
[402212391,1768606247619,-897.50580187,0.00020823,20]
[402212393,1768606247628,-3000.0,0.00020846,7]
[402212395,1768606247638,-80356.46750575,0.000209,2]
[402212397,1768606247647,-250.0,0.000209,10]
[402212399,1768606247655,-728.0,0.00020989,2]
[402212401,1768606247664,-2000.0,0.00020995,7]
[402212403,1768606247674,-728.0,0.00020996,2]
[402212405,1768606247683,-3000.0,0.00021,4]
[402212407,1768606247692,-1000.0,0.00021,7]
[402212409,1768606247701,-990.0,0.00021,3]
[402212411,1768606247710,-7644.54563467,0.00021,2]
[402212413,1768606247720,-3000.0,0.00021,2]
[402212415,1768606247730,-210.48,0.00021,2]
[402212417,1768606247739,-250.0,0.00021,10]
[402212419,1768606247749,-501.15478693,0.00021,2]
[402212421,1768606247758,-308.9317383,0.00021,2]
[402212423,1768606247767,-3000.0,0.0002101,2]
[402212425,1768606247776,-3000.0,0.0002102,2]
[402212427,1768606247785,-3000.0,0.0002103,2]
[402212429,1768606247794,-3000.0,0.0002104,2]
[402212431,1768606247804,-3000.0,0.0002105,2]
[402212433,1768606247813,-3000.0,0.0002106,2]
[402212435,1768606247822,-3000.0,0.0002107,2]
[402212437,1768606247831,-11796.61578776,0.00021077,2]
[402212439,1768606247840,-3000.0,0.0002108,2]
[402212441,1768606247848,-3000.0,0.0002109,2]
[402212443,1768606247857,-927.74794917,0.000211,120]
[402212445,1768606247866,-3000.0,0.000211,2]
[402212447,1768606247875,-3199.29,0.000211,2]
[402212449,1768606247884,-250.0,0.000211,10]
[402212451,1768606247899,-3000.0,0.0002111,2]
[402212452,1768606247908,-3000.0,0.0002112,2]
[402212453,1768606247917,-3000.0,0.0002113,2]
[402212454,1768606247926,-3000.0,0.0002114,2]
[402212455,1768606247937,-3000.0,0.0002115,2]
[402212456,1768606247946,-3000.0,0.0002116,2]
[402212457,1768606247955,-3000.0,0.0002117,2]
[402212458,1768606247964,-3000.0,0.0002118,2]
[402212459,1768606247973,-386.10278099,0.00021186,2]
[402212460,1768606247982,-3000.0,0.0002119,2]
[402212461,1768606247991,-3000.0,0.000212,2]
[402212462,1768606248000,-3000.0,0.0002121,2]
[402212463,1768606248009,-3000.0,0.0002122,2]
[402212464,1768606248018,-3000.0,0.0002123,2]
[402212465,1768606248027,-3000.0,0.0002124,2]
[402212466,1768606248036,-224.7449141,0.00021242,63]
[402212467,1768606248046,-180.2648404,0.00021242,63]
[402212468,1768606248055,-3000.0,0.0002125,2]
[402212469,1768606248064,-3000.0,0.0002126,2]
[402212470,1768606248074,-897.50580187,0.00021268,21]
[402212471,1768606248083,-3000.0,0.0002127,2]
[402212472,1768606248092,-3000.0,0.0002128,2]
[402212473,1768606248101,-3207.40519818,0.00021288,2]
[402212474,1768606248110,-663.93287602,0.00021288,2]
[402212475,1768606248120,-3000.0,0.0002129,2]
[402212476,1768606248129,-800.0,0.00021291,2]
[402212477,1768606248138,-22260.38,0.000213,2]
[402212478,1768606248147,-190.77,0.000213,2]
[402212479,1768606248157,-3000.0,0.000213,2]
[402212480,1768606248166,-3000.0,0.0002131,2]
[402212481,1768606248175,-170.0,0.00021315,120]
[402212482,1768606248184,-171.0,0.00021315,120]
[402212483,1768606248194,-3000.0,0.0002132,2]
[402212484,1768606248203,-3000.0,0.0002133,2]
[402212485,1768606248212,-3000.0,0.0002134,2]
[402212486,1768606248221,-3000.0,0.0002135,2]
[402212487,1768606248231,-3000.0,0.0002136,2]
[402212488,1768606248239,-590.72554634,0.00021362,2]
[402212489,1768606248250,-3000.0,0.0002137,2]
[402212490,1768606248260,-5154.13009338,0.0002138,2]
[402212491,1768606248269,-3000.0,0.0002138,2]
[402212492,1768606248278,-3000.0,0.0002139,2]
[402212493,1768606248287,-3000.0,0.000214,2]
[402212494,1768606248297,-3000.0,0.0002141,2]
[402212495,1768606248307,-3000.0,0.0002142,2]
[402212496,1768606248317,-322.0,0.00021428,120]
[402212497,1768606248326,-193.0,0.00021428,120]
[402212498,1768606248336,-166.0,0.00021428,120]
[402212499,1768606248345,-167.0,0.00021428,120]
[402212500,1768606248355,-4771.482473,0.0002143,2]
[402212501,1768606248364,-2000.0,0.00021495,7]
[402212502,1768606248373,-1040.39181011,0.000215,2]
[402212503,1768606248383,-12869.10933514,0.000215,2]
[402212504,1768606248392,-3575.3311525,0.000215,2]
[402212505,1768606248401,-363.7,0.00021584,2]
[402212506,1768606248410,-728.0,0.00021679,2]
[402212507,1768606248419,-11422.5,0.000217,3]
[402212508,1768606248430,-897.50580187,0.00021714,23]
[402212509,1768606248439,-180.0,0.00021753,5]
[402212510,1768606248449,-728.0,0.00021834,2]
[402212511,1768606248458,-3326.07919052,0.00021836,2]
[402212512,1768606248467,-688.49839244,0.00021836,2]
[402212513,1768606248477,-177.0,0.00021851,120]
[402212514,1768606248487,-199.0,0.00021851,120]
[402212515,1768606248497,-171.0,0.00021851,120]
[402212516,1768606248506,-173.0,0.00021851,120]
[402212517,1768606248516,-150.58,0.0002189,3]
[402212518,1768606248525,-167.85,0.000219,2]
[402212519,1768606248534,-210.48,0.000219,2]
[402212520,1768606248543,-161.0647,0.00021908,2]
[402212521,1768606248553,-172.552376,0.00021917,3]
[402212522,1768606248563,-158.848643,0.00021917,3]
[402212523,1768606248572,-158.848643,0.00021917,3]
[402212524,1768606248581,-974.84761092,0.00021917,3]
[402212525,1768606248590,-500.0,0.00021917,3]
[402212526,1768606248599,-500.0,0.00021917,3]
[402212527,1768606248608,-500.0,0.00021917,3]
[402212528,1768606248618,-500.0,0.00021917,3]
[402212529,1768606248627,-500.0,0.00021917,3]
[402212530,1768606248636,-500.0,0.00021917,3]
[402212531,1768606248645,-500.0,0.00021917,3]
[402212532,1768606248654,-500.0,0.00021917,3]
[402212533,1768606248663,-500.0,0.00021917,3]
[402212534,1768606248672,-500.0,0.00021917,3]
[402212535,1768606248681,-500.0,0.00021917,3]
[402212536,1768606248690,-500.0,0.00021917,3]
[402212537,1768606248699,-500.0,0.00021917,3]
[402212538,1768606248708,-543.61640008,0.00021917,3]
[402212539,1768606248718,-500.0,0.00021917,3]
[402212540,1768606248727,-500.0,0.00021917,3]
[402212541,1768606248737,-500.0,0.00021917,3]
[402212542,1768606248746,-500.0,0.00021917,3]
[402212543,1768606248756,-500.0,0.00021917,3]
[402212545,1768606248765,-500.0,0.00021917,3]
[402212546,1768606248774,-500.0,0.00021917,3]
[402212547,1768606248783,-500.0,0.00021917,3]
[402212548,1768606248792,-552.12,0.00021917,3]
[402212549,1768606248801,-500.0,0.00021917,3]
[402212550,1768606248810,-500.0,0.00021917,3]
[402212551,1768606248819,-500.0,0.00021917,3]
[402212552,1768606248828,-500.0,0.00021917,3]
[402212553,1768606248837,-500.0,0.00021917,3]
[402212554,1768606248846,-500.0,0.00021917,3]
[402212555,1768606248857,-500.0,0.00021917,3]
[402212556,1768606248866,-1306.68,0.00021917,3]
[402212557,1768606248875,-500.0,0.00021917,3]
[402212558,1768606248884,-500.0,0.00021917,3]
[402212559,1768606248897,-545.9,0.00021917,3]
[402212560,1768606248906,-580.5,0.00021917,3]
[402212561,1768606248915,-613.28,0.00021917,3]
[402212562,1768606248924,-500.0,0.00021917,3]
[402212563,1768606248934,-628.62,0.00021917,3]
[402212564,1768606248943,-500.0,0.00021917,3]
[402212565,1768606248952,-699.17,0.00021917,3]
[402212566,1768606248963,-500.0,0.00021917,3]
[402212567,1768606248973,-679.33,0.00021917,3]
[402212568,1768606248982,-500.0,0.00021917,3]
[402212569,1768606248992,-500.0,0.00021917,3]
[402212570,1768606249001,-500.0,0.00021917,3]
[402212571,1768606249011,-500.0,0.00021917,3]
[402212572,1768606249019,-500.0,0.00021917,3]
[402212573,1768606249028,-500.0,0.00021917,3]
[402212574,1768606249040,-1088.64,0.00021917,3]
[402212575,1768606249050,-500.0,0.00021917,3]
[402212576,1768606249060,-500.0,0.00021917,3]
[402212577,1768606249069,-510.38419514,0.00021917,3]
[402212578,1768606249079,-577.81,0.00021917,3]
[402212579,1768606249089,-534.42798743,0.00021917,3]
[402212580,1768606249098,-500.0,0.00021917,3]
[402212581,1768606249108,-913.53,0.00021917,3]
[402212582,1768606249117,-1092.57,0.00021917,3]
[402212583,1768606249126,-500.0,0.00021917,3]
[402212584,1768606249136,-500.0,0.00021917,3]
[402212585,1768606249145,-500.0,0.00021917,3]
[402212586,1768606249154,-502.89,0.00021917,3]
[402212587,1768606249163,-500.0,0.00021917,3]
[402212588,1768606249172,-805.67,0.00021917,3]
[402212589,1768606249182,-500.0,0.00021917,3]
[402212590,1768606249191,-500.0,0.00021917,3]
[402212591,1768606249200,-612.67,0.00021917,3]
[402212592,1768606249210,-500.0,0.00021917,3]
[402212593,1768606249219,-500.0,0.00021917,3]
[402212594,1768606249229,-500.0,0.00021917,3]
[402212595,1768606249239,-500.0,0.00021917,3]
[402212596,1768606249249,-500.0,0.00021917,3]
[402212597,1768606249258,-500.0,0.00021917,3]
[402212598,1768606249267,-1066.43,0.00021917,3]
[402212599,1768606249276,-1720.28,0.00021917,3]
[402212600,1768606249286,-500.0,0.00021917,3]
[402212601,1768606249295,-500.0,0.00021917,3]
[402212602,1768606249304,-500.0,0.00021917,3]
[402212603,1768606249314,-528.71,0.00021917,3]
[402212604,1768606249323,-500.0,0.00021917,3]
[402212605,1768606249332,-500.0,0.00021917,3]
[402212606,1768606249341,-984.57,0.00021917,3]
[402212607,1768606249350,-500.0,0.00021917,3]
[402212608,1768606249360,-844.99,0.00021917,3]
[402212609,1768606249369,-696.01,0.00021917,3]
[402212610,1768606249378,-500.0,0.00021917,3]
[402212611,1768606249387,-500.0,0.00021917,3]
[402212612,1768606249396,-500.0,0.00021917,3]
[402212613,1768606249405,-171.92891161,0.00021917,3]
[402212614,1768606249415,-500.0,0.00021917,3]
[402212615,1768606249424,-501.33,0.00021917,3]
[402212616,1768606249434,-500.0,0.00021917,3]
[402212617,1768606249443,-1000.0,0.00021917,2]
[402212618,1768606249452,-460.4,0.00021917,3]
[402212619,1768606249461,-500.0,0.00021917,3]
[402212620,1768606249470,-500.0,0.00021917,3]
[402212621,1768606249480,-500.0,0.00021917,3]
[402212622,1768606249489,-1048.01,0.00021917,3]
[402212623,1768606249499,-500.0,0.00021917,3]
[402212624,1768606249508,-500.0,0.00021917,3]
[402212625,1768606249517,-500.0,0.00021917,3]
[402212626,1768606249527,-861.03,0.00021917,3]
[402212627,1768606249536,-666.35,0.00021917,3]
[402212628,1768606249546,-606.72,0.00021917,3]
[402212629,1768606249555,-500.0,0.00021917,3]
[402212630,1768606249564,-615.63,0.00021917,3]
[402212631,1768606249574,-596.29,0.00021917,3]
[402212632,1768606249583,-500.0,0.00021917,3]
[402212633,1768606249593,-500.0,0.00021917,3]
[402212634,1768606249602,-772.71,0.00021917,3]